bitfinex/quotes_ETHUSD_20220112
["timestamp","ask_amount","ask_price","bid_price","bid_amount"]
[1641992446344,3.99583273,3316.6,3315.5,7.9]
[1641992446549,0.00803273,3316.6,3316.3,0.75376]
[1641992446948,0.00803273,3316.6,3316.3,2.0630281]
[1641992447148,0.00803273,3316.6,3316.4,2.02076466]
[1641992447348,0.00803273,3316.6,3316.4,2.62211448]
[1641992447550,0.07863273,3317.7,3316.5,7.06035585]
[1641992447867,0.01023162,3317.4,3316.5,7.06035585]
[1641992448119,0.13300532,3317.8,3316.6,1.0]
[1641992448323,0.0096632,3317.3,3316.7,1.52469014]
[1641992448517,0.1205,3317.6,3316.8,1.50726]
[1641992448718,0.00909478,3317.2,3316.9,1.50727]
[1641992448918,0.01080005,3317.5,3316.6,0.7538]
[1641992449221,0.1205,3317.4,3316.6,1.7538]
[1641992449420,0.1205,3317.4,3316.5,0.1206]
[1641992449621,1.31592471,3316.8,3316.5,0.1206]
[1641992450022,0.00625266,3316.7,3316.5,0.1206]
[1641992450421,0.00568423,3316.6,3316.4,0.75384]
[1641992450826,0.00511581,3316.5,3316.4,0.75384]
[1641992451423,0.00511581,3316.5,3316.3,1.0]
[1641992451624,0.90551549,3316.4,3316.1,0.1206]
[1641992451872,0.91006288,3316.4,3315.9,0.1206]
[1641992452068,0.00397896,3316.3,3315.9,0.1206]
[1641992452274,0.00397896,3316.3,3315.5,0.1206]
[1641992452459,0.90451661,3316.7,3315.5,0.1206]
[1641992452460,1.22403379,3316.2,3315.5,0.1206]
[1641992452863,0.00284212,3316.1,3315.5,0.1206]
[1641992453063,0.00284212,3316.1,3315.9,0.75396]
[1641992453264,0.00227369,3316.0,3315.9,0.75396]
[1641992453468,0.00227369,3316.0,3315.9,6.40396]
[1641992453863,0.00227369,3316.0,3315.9,5.65]
[1641992454062,0.00227369,3316.0,3315.9,7.40395]
[1641992454263,0.00227369,3316.0,3315.9,0.75395]
[1641992455065,1.55364974,3315.7,3315.6,3.0157]
[1641992455470,0.00170527,3315.9,3315.6,3.0157]
[1641992455698,0.00170527,3315.9,3315.8,3.95393]
[1641992455898,0.1206,3316.6,3315.9,0.75394]
[1641992456109,0.1206,3316.8,3315.9,0.75394]
[1641992456326,0.1206,3316.8,3315.8,3.04908901]
[1641992456327,0.00511581,3316.5,3315.8,3.04908901]
[1641992456500,0.00511581,3316.5,3315.9,1.62828]
[1641992456801,0.00454739,3316.4,3316.1,0.7538]
[1641992457201,0.00397896,3316.3,3316.0,0.7539]
[1641992457602,1.40929976,3316.6,3316.2,1.50763]
[1641992458003,0.00511581,3316.5,3316.2,1.50763]
[1641992458205,0.00511581,3316.5,3315.9,2.62828]
[1641992458404,0.00511581,3316.5,3315.9,0.1206]
[1641992458405,0.06526631,3316.4,3315.9,0.1206]
[1641992458610,0.00454739,3316.4,3315.9,0.1206]
[1641992458804,0.00397896,3316.3,3315.9,0.1206]
[1641992459203,0.1206,3316.5,3315.9,0.87456]
[1641992459204,0.00341054,3316.2,3315.9,0.87456]
[1641992459451,1.401731,3316.1,3315.9,0.87456]
[1641992459653,1.40457312,3316.1,3315.7,1.50786]
[1641992459849,0.00227369,3316.0,3315.7,1.50786]
[1641992460250,0.00170527,3315.9,3315.7,1.50786]
[1641992460652,0.00113685,3315.8,3315.7,1.50786]
[1641992461253,0.00113685,3315.8,3315.7,5.80786]
[1641992461550,0.00113685,3315.8,3315.7,6.80786]
[1641992461951,0.00113685,3315.8,3315.7,7.22846]
[1641992462153,0.00113685,3315.8,3315.7,6.92846]
[1641992462553,0.00113685,3315.8,3315.7,2.62846]
[1641992465302,0.00113685,3315.8,3315.7,1.72272481]
[1641992465501,0.00113685,3315.8,3315.7,0.72272481]
[1641992465902,0.00113685,3315.8,3315.7,1.72272481]
[1641992466102,0.00113685,3315.8,3315.7,0.72272481]
[1641992466307,0.00113685,3315.8,3315.7,1.72272481]
[1641992466505,0.00113685,3315.8,3315.7,1.60212481]
[1641992466945,0.00113685,3315.8,3315.7,0.60212481]
[1641992467345,0.00113685,3315.8,3315.7,3.45212481]
[1641992467547,0.00113685,3315.8,3315.7,4.45212481]
[1641992468347,0.9068192,3315.8,3315.7,4.45212481]
[1641992468552,0.9068192,3315.8,3315.7,1.60212481]
[1641992468952,0.9068192,3315.8,3315.7,0.60212481]
[1641992469148,0.9068192,3315.8,3315.7,4.90212481]
[1641992469349,0.1056,3316.2,3315.8,5.95]
[1641992469548,0.1056,3316.2,3315.9,3.71794513]
[1641992469752,0.00170527,3316.2,3316.1,7.9]
[1641992469952,0.1206,3317.6,3316.1,55.40483464]
[1641992470153,0.1206,3317.6,3316.9,0.01223258]
[1641992470349,0.1206,3317.6,3317.2,1.35447987]
[1641992470593,0.1206,3317.6,3317.3,2.33196518]
[1641992470896,0.1206,3317.6,3317.4,0.75345]
[1641992471096,0.1206,3317.6,3317.5,4.8]
[1641992471503,0.12912635,3317.6,3317.5,4.8]
[1641992471700,0.12912635,3317.6,3317.5,5.8]
[1641992471899,0.12912635,3317.6,3317.5,1.0]
[1641992472098,0.12912635,3317.6,3317.4,1.75345]
[1641992472297,0.00852635,3317.6,3317.4,1.75345]
[1641992472496,0.1205,3318.2,3317.4,0.75345]
[1641992472497,0.00795793,3317.5,3317.4,0.75345]
[1641992472699,0.00795793,3317.5,3317.4,1.75345]
[1641992472898,0.00795793,3317.5,3317.4,0.75345]
[1641992473101,0.00795793,3317.5,3317.4,5.30345]
[1641992473399,0.00795793,3317.5,3317.4,4.30345]
[1641992474202,0.00795793,3317.5,3317.4,0.75345]
[1641992474442,0.55795793,3317.7,3317.4,0.75345]
[1641992474644,0.1205,3317.8,3317.4,0.75345]
[1641992474844,0.1205,3318.1,3317.4,0.75345]
[1641992475043,0.00113684,3317.7,3317.4,0.75345]
[1641992476049,0.00113684,3317.7,3317.6,0.75353]
[1641992476448,0.00113684,3317.7,3317.6,1.75353]
[1641992477752,0.00113684,3317.7,3317.6,0.75353]
[1641992477956,1.02461286,3318.2,3317.7,8.03819997]
[1641992478202,1.02461286,3318.2,3317.9,0.75327]
[1641992478403,4.9011,3319.6,3318.1,7.45]
[1641992478605,3.7385,3319.6,3318.2,5.3800572]
[1641992478805,4.8746,3320.3,3318.7,0.75319]
[1641992478806,0.00795792,3319.5,3318.7,0.75319]
[1641992479007,0.00795792,3319.5,3319.1,0.75324]
[1641992479226,0.0073895,3319.4,3319.1,0.75324]
[1641992479609,0.00682108,3319.3,3319.1,0.75324]
[1641992480011,0.00625265,3319.2,3319.1,0.75324]
[1641992480212,0.00625265,3319.2,3319.1,8.20324]
[1641992480617,0.00625265,3319.2,3319.1,9.20324]
[1641992480811,0.00625265,3319.2,3319.1,9.73764]
[1641992481010,0.1205,3320.2,3319.1,10.09594]
[1641992481214,0.90354348,3320.3,3319.1,10.09594]
[1641992481215,0.90354348,3320.3,3319.6,0.75298]
[1641992481415,0.00511582,3320.1,3319.6,1.18798]
[1641992481611,0.00511582,3320.1,3319.6,1.435]
[1641992481878,0.00454739,3320.0,3319.7,0.1203]
[1641992482127,0.00454739,3320.0,3319.8,1.42566585]
[1641992482266,0.00652154,3320.6,3320.1,0.75276]
[1641992482467,0.00652154,3320.6,3320.2,0.0703]
[1641992482668,0.00738951,3320.5,3320.2,0.0703]
[1641992483066,0.00682109,3320.4,3320.3,4.91943327]
[1641992483475,0.00682109,3320.4,3320.3,2.16943327]
[1641992483669,0.00682109,3320.4,3320.2,1.5759]
[1641992483872,0.00682109,3320.4,3320.2,0.0703]
[1641992484068,0.00625266,3320.3,3320.2,0.0703]
[1641992484475,0.00682109,3320.3,3320.2,0.0703]
[1641992484870,0.00682109,3320.3,3319.6,1.50601]
[1641992485072,0.00682109,3320.3,3319.6,2.50601]
[1641992485269,0.00568424,3320.2,3319.6,1.50601]
[1641992485470,0.00568424,3320.2,3319.7,1.0]
[1641992485705,0.05660511,3320.1,3319.3,0.1203]
[1641992485903,0.75321,3320.0,3319.0,0.1203]
[1641992486105,0.75321,3320.0,3318.5,0.44755549]
[1641992486106,0.4205,3319.9,3318.7,0.1205]
[1641992486303,0.42447897,3319.9,3318.6,0.1205]
[1641992486501,0.00341055,3319.8,3318.8,0.00227369]
[1641992486703,0.00341055,3319.8,3319.0,2.09008752]
[1641992486906,0.00284212,3319.7,3319.0,2.09008752]
[1641992487208,0.00341055,3319.8,3319.0,0.75322]
[1641992487440,0.0022737,3319.6,3318.8,1.50866369]
[1641992487605,0.1205,3319.7,3318.8,0.00227369]
[1641992487606,0.12334212,3319.7,3318.8,0.00227369]
[1641992487807,0.00170527,3319.5,3318.9,0.00170527]
[1641992488008,0.90391955,3318.9,3318.7,0.00284211]
[1641992488214,0.90391955,3318.9,3318.8,0.1205]
[1641992488408,0.90391955,3318.9,3318.8,7.9]
[1641992488608,0.12163685,3319.4,3318.8,7.9]
[1641992489008,0.12163685,3319.4,3318.9,1.00170527]
[1641992489209,0.00113685,3319.4,3319.1,2.07277621]
[1641992490259,0.00113685,3319.4,3319.1,2.90617621]
[1641992490686,0.00113685,3319.4,3319.2,3.17797783]
[1641992490858,0.00113685,3319.4,3319.3,7.0205]
[1641992491062,0.00113685,3319.4,3319.3,1.1205]
[1641992491261,0.00113685,3319.4,3319.3,3.03995672]
[1641992491462,0.00113685,3319.4,3319.3,2.03995672]
[1641992491661,0.00113685,3319.4,3319.3,3.03995672]
[1641992491864,0.00113685,3319.4,3319.3,4.54606672]
[1641992492064,0.00113685,3319.4,3319.3,9.59606672]
[1641992492663,0.0165455,3319.6,3319.3,9.59606672]
[1641992493107,0.0165455,3319.6,3319.5,7.75297]
[1641992493301,1.10718476,3320.6,3320.1,1.38725573]
[1641992493500,1.10718476,3320.6,3319.6,0.1203]
[1641992493702,1.10718476,3320.6,3319.7,1.50598]
[1641992493902,1.10066322,3320.6,3319.7,0.60136217]
[1641992494304,1.70066322,3320.6,3319.7,0.60136217]
[1641992494500,1.70066322,3320.6,3319.6,0.1203]
[1641992494701,2.40085964,3320.5,3319.6,0.1203]
[1641992494905,0.1203,3320.5,3319.6,0.1203]
[1641992495146,1.44464221,3320.3,3319.6,0.1203]
[1641992495304,1.86494221,3320.3,3319.6,0.1203]
[1641992495504,0.00454739,3320.2,3319.6,0.1203]
[1641992495924,0.00397897,3320.1,3319.6,0.1203]
[1641992496107,0.00397897,3320.1,3319.7,0.75306]
[1641992496304,0.00341054,3320.0,3319.7,0.75306]
[1641992496846,0.00284212,3319.9,3319.7,0.75306]
[1641992497252,0.1515619,3319.7,3319.5,1.50606]
[1641992497755,0.00113685,3319.6,3319.5,1.50606]
[1641992499962,0.00113685,3319.6,3319.5,6.82636]
[1641992500159,0.00113685,3319.6,3319.5,7.82636]
[1641992501199,0.00113685,3319.6,3319.5,2.62636]
[1641992502003,0.00113685,3319.6,3319.5,1.62636]
[1641992502201,0.00113685,3319.6,3319.5,2.62636]
[1641992502403,0.00113685,3319.6,3319.5,1.62636]
[1641992502636,0.00113685,3319.6,3319.5,2.62636]
[1641992502803,0.00113685,3319.6,3319.5,1.62636]
[1641992503006,0.00113685,3319.6,3319.5,2.50606]
[1641992503205,0.00113685,3319.6,3319.5,1.50606]
[1641992503405,0.01768235,3319.6,3319.5,2.50606]
[1641992503606,0.01768235,3319.6,3319.5,2.62636]
[1641992504006,0.01768235,3319.6,3319.5,1.62636]
[1641992504206,0.01768235,3319.6,3319.5,2.62636]
[1641992504448,0.01768235,3319.6,3319.5,1.62636]
[1641992504651,0.01768235,3319.6,3319.5,2.62636]
[1641992504860,0.01768235,3319.6,3319.5,1.62636]
[1641992505054,0.01768235,3319.6,3319.5,2.62636]
[1641992505655,0.01768235,3319.6,3319.5,2.57636]
[1641992506454,0.01768235,3319.6,3319.5,1.57636]
[1641992506650,0.01768235,3319.6,3319.5,2.45606]
[1641992506853,0.01768235,3319.6,3319.5,0.55220431]
[1641992507055,0.01768235,3319.6,3319.5,1.55220431]
[1641992507255,0.01768235,3319.6,3319.5,0.55220431]
[1641992508155,0.07450906,3319.5,3318.6,1.50651]
[1641992508342,0.03795919,3319.5,3318.6,1.50651]
[1641992508534,0.3,3319.5,3318.7,0.00397896]
[1641992508734,0.1205,3319.4,3318.7,1.52887774]
[1641992508934,0.4205,3319.5,3318.7,0.00397896]
[1641992509133,0.4205,3319.5,3318.8,0.75670054]
[1641992509134,1.6270819,3319.5,3318.8,0.75670054]
[1641992509339,0.1205,3319.5,3318.7,0.00397896]
[1641992509539,0.1205,3319.5,3318.9,0.00284212]
[1641992509739,0.1205,3319.5,3317.7,0.13819997]
[1641992509740,0.1205,3319.5,3318.5,0.00511581]
[1641992509939,0.1205,3319.5,3318.3,1.11243597]
[1641992509940,1.14493726,3319.2,3318.3,1.11243597]
[1641992510140,1.08464438,3319.1,3318.3,1.23293597]
[1641992510340,1.08464438,3319.1,3318.4,1.51227423]
[1641992510743,1.08464438,3319.1,3318.5,0.00511581]
[1641992510945,0.1205,3319.0,3318.5,0.00511581]
[1641992511844,1.08464438,3319.1,3318.6,0.75333]
[1641992512048,1.08464438,3319.1,3318.3,0.12675266]
[1641992512249,1.20514438,3319.1,3318.7,0.00397896]
[1641992512450,1.20514438,3319.1,3318.4,0.00568423]
[1641992512651,1.50514438,3319.1,3318.3,0.00625266]
[1641992512851,1.20514438,3319.1,3318.3,0.00625266]
[1641992513057,1.39152073,3318.5,3318.3,0.00625266]
[1641992513462,7.1205,3318.4,3318.3,0.00625266]
[1641992513654,7.1205,3318.4,3317.3,0.1205]
[1641992513655,0.4205,3318.4,3318.1,0.0073895]
[1641992513853,0.4205,3318.4,3317.4,2.01136847]
[1641992514053,0.1205,3318.4,3317.7,0.0096632]
[1641992514254,0.7205,3318.4,3317.5,0.01080004]
[1641992514460,0.75356,3318.3,3317.4,2.01136847]
[1641992514653,0.75356,3318.3,3317.7,1.41673034]
[1641992515053,0.1205,3318.6,3317.8,0.76262477]
[1641992515252,0.4205,3318.6,3317.8,0.76262477]
[1641992515453,0.4205,3318.6,3317.7,1.41673034]
[1641992515454,0.1205,3318.6,3317.9,0.00852635]
[1641992515698,0.1205,3318.8,3317.9,0.76194635]
[1641992515902,0.1205,3318.8,3317.7,1.0]
[1641992515903,1.50514438,3319.1,3318.3,0.75342]
[1641992516102,0.15160106,3318.2,3318.1,1.0]
[1641992516500,0.15160106,3318.2,3317.8,1.0]
[1641992516700,0.15160106,3318.2,3317.9,0.1205]
[1641992516901,0.15160106,3318.2,3318.0,1.50146599]
[1641992517102,0.15160106,3318.2,3318.1,0.1205]
[1641992517304,0.15160106,3318.2,3318.1,0.1278895]
[1641992517503,0.15160106,3318.2,3318.1,1.1278895]
[1641992517704,0.15160106,3318.2,3318.1,0.1278895]
[1641992517905,0.15160106,3318.2,3318.1,0.0073895]
[1641992518305,1.21463253,3318.5,3318.1,0.0073895]
[1641992518503,1.21463253,3318.5,3318.0,0.00795793]
[1641992518504,0.7205,3318.5,3318.0,0.00795793]
[1641992519004,0.1205,3319.0,3317.7,0.0096632]
[1641992519203,0.75348,3318.6,3317.7,0.0096632]
[1641992519451,0.4205,3318.5,3317.8,0.75345]
[1641992519655,0.4205,3318.5,3317.9,0.75351]
[1641992520051,0.1205,3318.5,3318.1,1.4370757]
[1641992520253,0.1205,3318.9,3318.2,2.75175228]
[1641992520461,1.08464438,3319.1,3318.2,2.00521336]
[1641992520656,1.08464438,3319.1,3318.5,0.75332]
[1641992521060,1.08464438,3319.1,3319.0,1.3055955]
[1641992521257,4.22182385,3319.6,3319.0,1.3055955]
[1641992521552,4.22182385,3319.6,3319.1,0.87366]
[1641992521750,4.22182385,3319.6,3319.1,0.87536527]
[1641992521956,4.22182385,3319.6,3319.3,0.75315]
[1641992522554,4.22182385,3319.6,3319.0,1.0]
[1641992522757,4.22182385,3319.6,3319.1,0.1205]
[1641992522977,0.00170527,3319.5,3319.1,0.1205]
[1641992523202,0.00170527,3319.5,3319.0,0.1205]
[1641992523400,0.00113685,3319.4,3319.1,1.5063]
[1641992523998,1.29877827,3319.4,3319.1,1.5063]
[1641992524203,1.29877827,3319.4,3318.7,0.1205]
[1641992524404,0.75333,3319.3,3318.7,1.0]
[1641992524603,1.05333,3319.3,3318.8,0.00227369]
[1641992524800,0.3,3319.2,3318.8,0.00227369]
[1641992525001,0.3,3319.2,3318.7,0.00284211]
[1641992525249,0.3,3319.2,3318.6,0.00341054]
[1641992525602,0.3,3319.2,3318.6,2.25985]
[1641992525802,0.3,3319.2,3318.5,0.00397896]
[1641992526001,1.89877827,3319.4,3318.7,0.00284211]
[1641992526202,1.89877827,3319.4,3318.5,0.00397896]
[1641992526408,0.7533339,3319.1,3318.5,0.00397896]
[1641992526605,1.5067961,3319.2,3318.5,0.00397896]
[1641992526850,0.90393625,3318.9,3318.5,0.75735896]
[1641992527071,2.44501793,3318.9,3318.5,0.75735896]
[1641992527256,1.20393625,3318.9,3318.6,0.00341054]
[1641992528057,1.20393625,3318.9,3318.5,0.75736896]
[1641992528259,0.01636555,3318.8,3318.4,0.97280422]
[1641992528463,0.01636555,3318.8,3318.4,0.1205]
[1641992528758,0.00113685,3318.7,3318.4,0.1205]
[1641992528966,0.00113685,3318.7,3318.5,0.75339]
[1641992529561,0.00113685,3318.7,3318.6,7.63942181]
[1641992529761,0.01636555,3318.8,3318.6,8.07442181]
[1641992529959,0.01636555,3318.8,3318.7,6.30699937]
[1641992530159,0.01636555,3318.8,3318.7,8.55828956]
[1641992530359,0.01636555,3318.8,3318.7,5.20828956]
[1641992530608,0.01636555,3318.8,3318.7,3.25129019]
[1641992530794,0.01636555,3318.8,3318.7,5.14773626]
[1641992531396,0.01636555,3318.8,3318.7,5.22571474]
[1641992531605,0.01636555,3318.8,3318.7,3.25129019]
[1641992531902,0.01636555,3318.8,3318.7,4.23672376]
[1641992532101,0.01636555,3318.8,3318.7,2.34631281]
[1641992532302,0.01636555,3318.8,3318.7,1.1205]
[1641992532503,0.01636555,3318.8,3318.7,1.87364]
[1641992532902,0.01636555,3318.8,3318.7,0.87364]
[1641992533403,0.01636555,3318.8,3318.7,0.75314]
[1641992534208,0.01636555,3318.8,3318.7,1.75314]
[1641992534649,0.92122828,3318.8,3318.7,1.75314]
[1641992534854,0.01636555,3318.8,3318.7,1.75314]
[1641992535654,0.01636555,3318.8,3318.7,0.75314]
[1641992536053,0.01636555,3318.8,3318.6,5.10802368]
[1641992536253,0.01636555,3318.8,3318.6,5.54302368]
[1641992536655,0.9039215,3318.9,3318.7,5.95]
[1641992536857,0.9039215,3318.9,3318.7,6.82364]
[1641992537055,0.9039215,3318.9,3318.8,3.7]
[1641992537255,4.220687,3319.6,3318.8,4.9283036]
[1641992537456,4.220687,3319.6,3319.1,1.50617]
[1641992537657,4.220687,3319.6,3319.3,0.75295]
[1641992537859,4.220687,3319.6,3319.4,0.5555]
[1641992538103,4.220687,3319.6,3319.4,1.18797]
[1641992538496,4.220687,3319.6,3319.5,6.37714237]
[1641992538697,4.220687,3319.6,3319.5,6.49744237]
[1641992538897,4.22580281,3319.6,3319.5,6.49744237]
[1641992539098,4.22580281,3319.6,3319.5,7.81214237]
[1641992540102,4.22580281,3319.6,3319.5,7.93244237]
[1641992541097,4.22580281,3319.6,3319.5,7.81214237]
[1641992541697,4.22580281,3319.6,3319.5,1.90743326]
[1641992543281,4.22580281,3319.6,3319.5,1.435]
[1641992543471,4.22580281,3319.6,3318.5,0.1203]
[1641992543472,6.59345198,3319.6,3318.5,0.1203]
[1641992543661,0.20294563,3319.5,3319.0,1.50642]
[1641992543955,0.00397896,3319.4,3319.0,1.50642]
[1641992544255,0.12391054,3319.3,3319.0,1.50642]
[1641992544663,0.00284211,3319.2,3319.0,1.50642]
[1641992545053,0.1205,3319.4,3319.0,1.50642]
[1641992545054,0.00227369,3319.1,3319.0,1.50642]
[1641992545254,0.1205,3319.4,3319.0,1.50642]
[1641992545697,0.00113685,3319.3,3319.0,1.50642]
[1641992545897,0.00113685,3319.3,3319.0,4.50642]
[1641992545898,0.1205,3319.2,3319.0,4.50642]
[1641992546095,0.1205,3319.2,3319.0,3.60243469]
[1641992546505,0.1205,3319.2,3319.0,3.0]
[1641992547097,0.8738191,3319.2,3319.0,3.0]
[1641992547501,1.1738191,3319.2,3319.0,3.0]
[1641992547910,0.3,3319.1,3319.0,3.0]
[1641992548101,0.4205,3319.1,3319.0,3.0]
[1641992549753,0.4205,3319.2,3319.0,3.0]
[1641992549960,0.4205,3319.2,3319.0,3.75326]
[1641992550552,0.4205,3319.2,3319.0,3.0]
[1641992550955,0.3,3319.2,3319.0,3.0]
[1641992551354,1.05445685,3319.3,3319.0,3.0]
[1641992551556,0.7532993,3319.2,3319.0,3.0]
[1641992552154,0.7532993,3319.2,3319.0,2.09506357]
[1641992552356,0.3,3319.1,3319.0,2.09506357]
[1641992552561,0.3,3319.1,3317.6,3.609]
[1641992552761,0.3,3319.1,3318.3,0.0022737]
[1641992552762,0.75346,3318.7,3318.3,0.0022737]
[1641992552955,0.1205,3318.6,3318.4,0.00397896]
[1641992553206,0.1205,3318.6,3317.9,0.00682108]
[1641992553504,0.1205,3318.6,3317.8,1.31425104]
[1641992553910,0.7534705,3318.4,3318.2,0.75347]
[1641992554312,0.6,3318.4,3318.3,0.00454739]
[1641992554510,0.7205,3318.6,3318.3,0.00454739]
[1641992554911,1.47396,3318.6,3318.3,0.00454739]
[1641992555217,2.2273944,3318.6,3318.3,0.00454739]
[1641992555622,2.1068944,3318.6,3318.3,0.00454739]
[1641992555815,3.68954194,3318.5,3318.3,0.00454739]
[1641992556014,11.38172074,3318.4,3318.3,0.00454739]
[1641992556215,11.38172074,3318.4,3317.8,0.0073895]
[1641992556414,0.75369,3318.1,3317.8,0.0073895]
[1641992556617,9.17784588,3318.4,3318.3,0.21655209]
[1641992557056,2.19588472,3318.0,3317.0,1.37119204]
[1641992557262,1.5073284,3317.9,3317.1,0.1205]
[1641992557459,2.19588472,3318.0,3317.1,0.13186847]
[1641992557460,0.68852472,3318.0,3317.1,0.13186847]
[1641992557763,0.75372,3317.6,3317.1,0.01136847]
[1641992557961,0.75372,3317.6,3317.2,0.1205]
[1641992558159,0.75372,3317.6,3317.0,0.13243689]
[1641992558360,0.3,3317.5,3317.3,0.01023162]
[1641992558560,0.75372,3317.6,3317.3,0.01023162]
[1641992558759,0.75372,3317.6,3317.2,0.13130004]
[1641992559161,0.75372,3317.6,3317.3,0.01023162]
[1641992559562,0.3,3317.9,3317.3,0.76387162]
[1641992559765,4.85448856,3318.4,3317.4,1.6276]
[1641992559962,1.50708,3318.5,3317.4,0.1301632]
[1641992560271,2.28419897,3318.4,3317.5,0.00909477]
[1641992560464,0.75371,3318.1,3317.5,0.00909477]
[1641992560741,0.7536923,3317.9,3317.5,0.00909477]
[1641992560927,0.3,3317.8,3317.5,0.00909477]
[1641992561535,0.3,3317.8,3317.2,0.1205]
[1641992561733,0.3,3317.8,3317.2,0.13130004]
[1641992561933,0.3,3317.8,3317.4,0.75362]
[1641992562333,0.7536547,3317.7,3317.5,0.00909477]
[1641992562534,0.3,3317.6,3317.5,0.00909477]
[1641992563136,0.3,3317.6,3317.3,1.76388162]
[1641992563335,0.3,3317.9,3317.4,0.0096632]
[1641992563638,1.5072383,3317.8,3317.4,0.0096632]
[1641992563836,0.89557088,3317.4,3317.2,1.50713]
[1641992564236,0.89557088,3317.4,3317.2,1.62763]
[1641992564451,0.89557088,3317.4,3317.2,2.62763]
[1641992564650,1.19557088,3317.4,3317.2,1.50713]
[1641992564850,1.19557088,3317.4,3317.0,1.50726]
[1641992565251,0.3,3317.4,3317.1,0.00170527]
[1641992565455,0.00170527,3317.7,3317.2,0.75367]
[1641992565853,0.00113685,3317.6,3317.2,0.75367]
[1641992566052,0.30113685,3317.6,3317.2,0.75367]
[1641992566251,1.05481655,3317.6,3317.1,0.00170527]
[1641992566452,0.75481655,3317.6,3317.2,0.75368]
[1641992566651,0.75481655,3317.6,3317.2,0.70368]
[1641992566853,1.05481655,3317.6,3317.2,0.70368]
[1641992567056,1.80848655,3317.6,3317.2,3.70368]
[1641992567256,1.80848655,3317.6,3317.2,2.79830047]
[1641992567659,1.80848655,3317.6,3317.2,3.55198047]
[1641992567858,1.50848655,3317.6,3317.2,3.55198047]
[1641992568301,0.75480685,3317.6,3317.2,3.55198047]
[1641992568501,0.75480685,3317.6,3317.2,2.64662894]
[1641992568803,0.75480685,3317.6,3317.2,1.89294894]
[1641992569201,0.75480685,3317.6,3317.2,2.64662894]
[1641992569401,0.3,3317.5,3317.2,2.64662894]
[1641992569605,1.50847805,3317.6,3317.2,2.64662894]
[1641992569804,0.7537,3317.5,3317.3,0.1205]
[1641992570005,0.7537,3317.5,3317.2,1.89294894]
[1641992570006,1.3537,3317.5,3317.2,1.89294894]
[1641992570203,1.4742,3317.5,3317.2,1.89294894]
[1641992570406,0.8742,3317.5,3317.2,1.89294894]
[1641992570610,0.1205,3317.5,3317.2,1.89294894]
[1641992571606,0.4205,3317.5,3317.3,0.75367]
[1641992571851,0.3,3317.5,3317.3,0.75367]
[1641992572652,0.3,3317.5,3317.2,1.74128107]
[1641992572852,1.05372,3317.5,3317.2,1.74128107]
[1641992573052,1.8074486,3317.5,3317.2,1.74128107]
[1641992573555,0.3,3317.4,3317.2,1.74128107]
[1641992573953,1.19711766,3317.3,3317.2,1.74128107]
[1641992574154,1.19711766,3317.3,3317.2,0.83581477]
[1641992574354,1.19711766,3317.3,3317.2,0.83695161]
[1641992575055,4.66761766,3317.3,3317.2,0.83695161]
[1641992575696,1.31761766,3317.3,3317.2,0.83695161]
[1641992575904,3.67628027,3317.3,3317.2,0.83695161]
[1641992576097,3.55578027,3317.3,3317.2,0.83695161]
[1641992576501,1.19711766,3317.3,3317.2,0.83695161]
[1641992577001,6.29711766,3317.3,3317.2,0.83695161]
[1641992577600,6.29711766,3317.3,3317.2,0.00113684]
[1641992578001,0.7538808,3317.0,3316.5,0.75900581]
[1641992578203,0.75391,3316.8,3316.6,0.00454739]
[1641992578601,0.3,3316.9,3316.3,0.00625266]
[1641992578802,0.89933664,3316.1,3316.0,10.0]
[1641992579001,1.19933664,3316.1,3316.0,10.0]
[1641992579203,1.19933664,3316.1,3316.0,10.00170527]
[1641992579664,0.3,3316.1,3316.0,10.00170527]
[1641992582372,7.62766415,3316.1,3316.0,10.00170527]
[1641992582573,0.3,3316.1,3316.0,9.09589449]
[1641992582775,0.3,3316.1,3314.1,1.43879459]
[1641992582776,0.75423,3315.8,3314.1,1.43879459]
[1641992582975,1.0544381,3315.0,3314.1,1.43879459]
[1641992583207,0.3,3315.0,3314.2,0.01023162]
[1641992583512,0.1206,3315.5,3314.5,0.75427]
[1641992583709,2.2633141,3315.4,3314.6,0.1206]
[1641992583909,1.5087,3315.1,3314.6,0.00795793]
[1641992584108,2.2631704,3314.9,3314.7,0.0073895]
[1641992584522,0.3,3314.8,3314.7,0.0073895]
[1641992584706,0.1206,3315.3,3315.2,5.56553662]
[1641992584914,0.1206,3315.3,3315.2,9.06553662]
[1641992585111,1.2488,3316.6,3315.3,0.1206]
[1641992585112,0.1206,3316.5,3315.3,0.1206]
[1641992585412,0.75413,3316.4,3315.4,0.00341054]
[1641992585607,4.20542,3316.9,3315.4,0.00341054]
[1641992585608,0.1206,3316.3,3315.4,0.00341054]
[1641992585810,0.75407,3316.0,3315.4,0.00341054]
[1641992586012,0.87467,3316.0,3315.4,0.00341054]
[1641992586854,1.0540922,3315.9,3315.4,0.00341054]
[1641992587052,0.75417,3315.7,3315.4,0.00341054]
[1641992587451,0.75417,3315.7,3315.3,0.00397896]
[1641992587650,0.3,3315.6,3315.3,0.00397896]
[1641992588073,0.81782834,3315.5,3315.3,0.00397896]
[1641992588258,0.7541781,3315.5,3315.1,0.00511581]
[1641992588454,0.75423,3315.3,3315.0,0.00568423]
[1641992588852,0.90022502,3315.0,3314.9,0.1206]
[1641992589053,1.20022502,3315.0,3314.6,0.1206]
[1641992589451,0.04111762,3314.9,3314.7,0.00170527]
[1641992589651,0.3,3315.0,3314.7,0.00170527]
[1641992590152,0.7542752,3315.1,3314.6,0.1206]
[1641992590153,1.0542752,3315.1,3314.6,0.0022737]
[1641992590353,1.0542752,3315.1,3314.5,0.60456198]
[1641992590602,0.0022737,3315.0,3314.8,0.75419]
[1641992590998,0.3,3316.0,3314.8,0.75419]
[1641992590999,0.00170528,3314.9,3314.8,0.75419]
[1641992591796,0.00170528,3314.9,3314.8,4.00419]
[1641992592203,0.00170528,3314.9,3314.8,5.00419]
[1641992593003,0.00170528,3314.9,3314.8,5.12479]
[1641992594949,0.90762234,3314.9,3314.8,5.12479]
[1641992595552,0.90762234,3314.9,3314.8,4.44369326]
[1641992595767,1.20762234,3314.9,3314.8,4.44369326]
[1641992595952,0.90762234,3314.9,3314.8,0.87479]
[1641992596252,1.50762234,3314.9,3314.8,0.87479]
[1641992596458,1.50762234,3314.9,3314.8,0.75419]